bitfinex-derivatives/quotes_SOLF0:USTF0_20240927
["timestamp","ask_amount","ask_price","bid_price","bid_amount"]
[1727467851231,3.1753,157.43,157.39,12.9259]
[1727467852237,3.175,157.44,157.4,3.1758]
[1727467852544,9.75,157.46,157.43,9.75]
[1727467852739,2.6613,157.47,157.43,9.75]
[1727467853038,5.8358,157.47,157.43,12.925]
[1727467853244,1.3559,157.47,157.45,9.75]
[1727467853444,9.75,157.49,157.44,9.75]
[1727467854442,3.1745,157.47,157.44,9.75]
[1727467855338,3.1747,157.46,157.42,3.1752]
[1727467855540,9.75,157.48,157.42,9.75]
[1727467855750,9.75,157.48,157.44,9.75]
[1727467856446,3.1745,157.47,157.44,9.75]
[1727467857435,1.3496,157.5,157.44,9.75]
[1727467857635,1.3496,157.5,157.46,9.75]
[1727467858748,3.174,157.49,157.46,12.9245]
[1727467860234,3.1742,157.48,157.46,3.1745]
[1727467860640,3.1742,157.48,157.45,3.1747]
[1727467860846,9.75,157.48,157.43,9.75]
[1727467861044,9.75,157.49,157.45,3.1747]
[1727467861245,11.0996,157.5,157.45,3.1747]
[1727467861457,1.3496,157.5,157.46,9.75]
[1727467862443,4.5234,157.5,157.47,3.1744]
[1727467863648,3.174,157.49,157.47,3.1744]
[1727467865555,3.174,157.49,157.46,12.9245]
[1727467866453,3.1742,157.48,157.46,9.75]
[1727467866655,22.18905413,157.5,157.45,12.9247]
[1727467866957,9.75,157.48,157.43,9.75]
[1727467867153,9.75,157.48,157.43,12.925]
[1727467867859,3.1746,157.46,157.43,12.925]
[1727467868357,3.1748,157.45,157.42,12.9253]
[1727467868656,9.75,157.46,157.4,9.75]
[1727467868858,3.1748,157.45,157.41,3.1754]
[1727467869957,3.175,157.44,157.41,3.1754]
[1727467870160,9.75,157.45,157.4,12.9257]
[1727467870359,9.75,157.45,157.4,3.1757]
[1727467870567,9.75,157.44,157.4,3.1757]
[1727467871460,9.75,157.43,157.38,9.75]
[1727467871862,12.9257,157.41,157.38,9.75]
[1727467872164,12.9257,157.41,157.37,12.9263]
[1727467872165,9.75,157.41,157.37,12.9263]
[1727467872957,12.9256,157.41,157.37,12.9263]
[1727467873157,9.75,157.39,157.36,3.1765]
[1727467873358,3.1763,157.38,157.34,9.75]
[1727467873558,9.75,157.39,157.34,9.75]
[1727467873767,9.75,157.41,157.36,9.75]
[1727467873972,12.9257,157.41,157.36,9.75]
[1727467874958,12.9257,157.41,157.37,3.1763]
[1727467875359,3.9013,157.44,157.38,9.75]
[1727467875560,9.75,157.43,157.38,9.75]
[1727467875766,12.9253,157.43,157.39,3.1758]
[1727467876773,3.1754,157.42,157.39,3.1758]
[1727467877873,12.9252,157.43,157.4,3.1757]
[1727467879869,4.5257,157.44,157.32,1.3734]
[1727467880075,15.156504,157.52,157.41,9.75]
[1727467880261,9.75,157.48,157.39,3.10126839]
[1727467880460,12.9243,157.48,157.45,3.1747]
[1727467880866,9.75,157.48,157.43,9.75]
[1727467881676,9.75,157.49,157.43,9.75]
[1727467882167,11.117804,157.51,157.44,3.1748]
[1727467882168,3.1745,157.47,157.44,3.1748]
[1727467884081,3.174,157.49,157.46,12.9246]
[1727467884279,11.117804,157.5,157.47,9.75]
[1727467884481,20.867804,157.51,157.47,9.75]
[1727467884782,3.174,157.49,157.46,9.75]
[1727467885475,3.174,157.49,157.46,12.9245]
[1727467885779,9.75,157.5,157.46,9.75]
[1727467885980,9.75,157.5,157.47,3.1742]
[1727467886277,20.867804,157.51,157.47,9.75]
[1727467886479,24.041404,157.51,157.48,3.174]
[1727467887779,3.1738,157.5,157.48,3.174]
[1727467887973,3.1738,157.5,157.47,12.9243]
[1727467888174,20.867804,157.51,157.47,9.75]
[1727467889266,3.1739,157.5,157.47,12.9242]
[1727467894577,14.291404,157.51,157.48,3.1741]
[1727467894779,9.75,157.55,157.5,9.75]
[1727467895688,2.6064,157.57,157.5,9.75]
[1727467895882,23.47994252,157.57,157.52,9.75]
[1727467896084,11.12354252,157.56,157.52,9.75]
[1727467896272,3.1729,157.55,157.52,12.9234]
[1727467897282,11.12354252,157.56,157.52,9.75]
[1727467897283,3.173,157.54,157.52,9.75]
[1727467897681,3.173,157.54,157.51,3.1735]
[1727467900485,3.173,157.54,157.52,9.75]
[1727467901693,14.29624252,157.56,157.53,12.9231]
[1727467901895,2.6064,157.57,157.53,9.75]
[1727467902485,12.3564,157.57,157.52,12.9232]
[1727467902694,12.3564,157.57,157.51,9.75]
[1727467902987,3.1729,157.55,157.52,3.1733]
[1727467903188,3.1729,157.55,157.52,12.9233]
[1727467904687,3.1729,157.55,157.52,9.75]
[1727467904890,1.2588,157.59,157.54,9.75]
[1727467905191,1.2588,157.59,157.56,9.75]
[1727467905380,3.1723,157.57,157.56,9.75]
[1727467905598,3.1723,157.57,157.54,9.75]
[1727467906388,3.1723,157.57,157.54,12.9228]
[1727467907786,6.3385,157.73,157.56,9.75]
[1727467908089,9.75,157.66,157.61,9.75]
[1727467908591,11.0433,157.66,157.61,9.75]
[1727467909988,3.1713,157.62,157.61,9.75]
[1727467921421,3.1712,157.63,157.61,9.75]
[1727467921608,3.1712,157.63,157.62,9.75]
[1727467921805,1.2933,157.66,157.61,9.75]
[1727467922317,11.0433,157.66,157.61,9.75]
[1727467924829,3.1713,157.63,157.61,9.75]
[1727467925523,3.171,157.64,157.62,9.75]
[1727467925720,3.171,157.64,157.63,9.75]
[1727467928424,3.1708,157.65,157.63,9.75]
[1727467928731,2.6072,157.71,157.64,9.75]
[1727467929024,1.294,157.74,157.69,9.75]
[1727467929319,14.13812056,157.74,157.69,9.75]
[1727467929524,3.1697,157.7,157.69,9.75]
[1727467930824,3.1699,157.69,157.68,9.75]
[1727467931224,4.38812056,157.74,157.68,9.75]
[1727467931525,3.1699,157.7,157.68,9.75]
[1727467932426,93.33904385,157.75,157.69,9.75]
[1727467932619,93.33904385,157.75,157.73,9.75]
[1727467933123,3.169,157.74,157.73,9.75]
[1727467933437,9.75,157.79,157.73,9.75]
[1727467933731,12.88686377,157.79,157.74,9.75]
[1727467934813,3.1687,157.76,157.74,9.75]
[1727467935013,3.1687,157.76,157.64,2.5659]
[1727467935014,12.88686377,157.79,157.71,3.1695]
[1727467935216,12.88686377,157.79,157.73,9.75]
[1727467935423,1.3583,157.8,157.64,2.5659]
[1727467935424,3.1685,157.77,157.75,9.75]
[1727467935626,1.3583,157.8,157.76,9.75]
[1727467935832,12.4047,157.83,157.78,9.75]
[1727467936524,3.1682,157.78,157.77,9.75]
[1727467943828,3.168,157.79,157.77,9.75]
[1727467944029,2.6547,157.83,157.78,9.75]
[1727467944229,3.1675,157.81,157.8,9.75]
[1727467944734,3.1673,157.83,157.8,9.75]
[1727467944934,3.1673,157.83,157.82,9.75]
[1727467945136,97.24506716,157.88,157.71,1.3112]
[1727467945327,3.1679,157.8,157.79,9.75]
[1727467945529,9.75,157.83,157.78,9.75]
[1727467945933,3.1679,157.79,157.78,9.75]
[1727467947337,3.1678,157.8,157.78,9.75]
[1727467947936,3.1678,157.8,157.79,9.75]
[1727467948535,3.9985,157.88,157.79,9.75]
[1727467948832,9.75,157.87,157.82,9.75]
[1727467949031,13.7485,157.88,157.83,9.75]
[1727467951036,3.1669,157.84,157.83,9.75]
[1727467965648,9.75,157.84,157.72,68.46]
[1727467965953,9.75,157.84,157.79,9.75]
[1727467966555,3.1677,157.8,157.79,9.75]
[1727467967946,3.1679,157.79,157.78,9.75]
[1727467968145,9.75,157.82,157.77,9.75]
[1727467969860,3.1681,157.79,157.77,9.75]
[1727467970455,3.1681,157.78,157.77,9.75]
[1727467971054,3.1681,157.78,157.76,9.75]
[1727467971960,3.1681,157.78,157.75,3.1687]
[1727467972259,3.1683,157.77,157.76,9.75]
[1727467974568,3.1686,157.76,157.74,3.1689]
[1727467974867,3.1686,157.76,157.75,9.75]
[1727467975563,3.1686,157.76,157.74,9.75]
[1727467976657,9.75,157.78,157.73,9.75]
[1727467977770,3.1688,157.75,157.73,9.75]
[1727467983668,3.1686,157.76,157.73,9.75]
[1727467983864,6.3339,157.85,157.74,9.75]
[1727467984077,6.3339,157.85,157.67,2.7317]
[1727467984078,9.75,157.81,157.67,2.7317]
[1727467984277,9.75,157.81,157.76,9.75]
[1727467984975,3.1684,157.77,157.76,9.75]
[1727467985477,3.1684,157.77,157.75,9.75]
[1727467986974,3.1682,157.78,157.76,9.75]
[1727467990982,11.0759,157.84,157.77,9.75]
[1727467991275,3.1682,157.78,157.73,1.2933]
[1727467991477,3.1682,157.78,157.76,9.75]
[1727467993584,3.1675,157.82,157.77,9.75]
[1727467993877,3.1675,157.82,157.81,9.75]
[1727467994782,3.1675,157.81,157.74,2.6563]
[1727467994981,3.1675,157.81,157.79,9.75]
[1727467995580,3.1675,157.81,157.74,2.6563]
[1727467995783,3.1675,157.81,157.79,9.75]
[1727467999389,3.1675,157.81,157.8,9.75]
[1727468001090,11.0759,157.84,157.8,9.75]
[1727468001091,3.1672,157.83,157.8,9.75]
[1727468001393,12.3736,157.87,157.82,9.75]
[1727468001781,22.74478345,157.87,157.82,9.75]
[1727468002897,3.167,157.84,157.82,9.75]
[1727468003989,1.2744,157.88,157.83,3.1671]
[1727468004187,11.12474264,157.88,157.83,9.75]
[1727468004390,3.1669,157.85,157.83,9.75]
[1727468004593,9.75,157.87,157.8,3.22007086]
[1727468004793,9.75,157.87,157.82,9.75]
[1727468005893,3.1669,157.85,157.82,9.75]
[1727468006795,9.75,157.86,157.79,3.1679]
[1727468007091,9.75,157.86,157.81,9.75]
[1727468008697,9.75,157.85,157.74,2.6563]
[1727468008895,9.75,157.85,157.79,9.75]
[1727468010702,3.1675,157.82,157.79,12.9179]
[1727468010906,9.75,157.85,157.79,9.75]
[1727468011094,19.60034264,157.85,157.79,9.75]
[1727468011298,9.75,157.85,157.79,9.75]
[1727468011501,3.1676,157.81,157.79,9.75]
[1727468015495,3.1674,157.82,157.79,12.9178]
[1727468015998,9.75,157.85,157.79,9.75]
[1727468017006,3.1675,157.81,157.79,9.75]
[1727468018903,3.1675,157.81,157.74,2.6563]
[1727468019100,3.1675,157.81,157.8,9.75]
[1727468019897,9.84554909,157.86,157.8,12.9176]
[1727468020107,9.84554909,157.86,157.82,9.75]
[1727468020499,3.167,157.84,157.82,9.75]
[1727468021799,3.1671,157.83,157.81,9.75]
[1727468028007,3.1671,157.83,157.8,3.1676]
[1727468028316,3.1671,157.83,157.82,9.75]
[1727468041734,9.75,157.84,157.75,162.50998]
[1727468041920,9.75,157.84,157.78,9.75]
[1727468042116,9.75,157.82,157.75,162.50998]
[1727468042322,9.75,157.82,157.77,9.75]
[1727468042520,9.75,157.82,157.76,3.1684]
[1727468042828,9.75,157.8,157.76,12.9184]
[1727468043128,3.1681,157.79,157.76,12.9184]
[1727468043921,3.1681,157.79,157.78,9.75]
[1727468048036,11.029,157.83,157.78,12.9181]
[1727468048635,3.1676,157.81,157.8,9.75]
[1727468053932,3.1679,157.8,157.78,9.75]
[1727468055832,3.1679,157.8,157.78,12.9181]
[1727468057835,3.1679,157.79,157.76,3.1684]
[1727468058036,9.75,157.82,157.77,9.75]
[1727468058437,9.75,157.82,157.78,9.75]
[1727468059530,3.1678,157.8,157.78,9.75]
[1727468063842,3.1678,157.8,157.78,12.9181]
[1727468064841,3.1678,157.8,157.78,9.75]
[1727468070555,9.75,157.82,157.76,9.75]
[1727468070756,9.75,157.81,157.76,9.75]
[1727468071152,3.1682,157.78,157.76,9.75]
[1727468071662,9.75,157.78,157.69,2.5664]
[1727468071862,9.75,157.78,157.72,9.75]
[1727468072059,9.75,157.78,157.69,56.52404059]
[1727468072257,9.75,157.75,157.69,56.52404059]
[1727468072554,9.75,157.75,157.7,9.75]
[1727468072759,2.6216,157.81,157.76,9.75]
[1727468072964,9.75,157.8,157.76,9.75]
[1727468073157,9.75,157.8,157.72,3.21200846]
[1727468073158,9.75,157.8,157.75,9.75]
[1727468073359,9.75,157.79,157.75,9.75]
[1727468073763,3.1684,157.77,157.75,9.75]
[1727468081269,3.1684,157.77,157.74,3.1688]
[1727468081569,3.1684,157.77,157.75,9.75]
[1727468082262,3.1685,157.76,157.74,9.75]
[1727468082967,3.1685,157.76,157.74,12.9189]
[1727468084271,3.1684,157.77,157.74,12.9189]
[1727468091178,3.1686,157.76,157.74,12.9189]
[1727468093285,3.1684,157.77,157.74,12.9189]
[1727468093478,2.6216,157.81,157.76,9.75]
[1727468093688,11.029,157.83,157.78,9.75]
[1727468094077,3.1679,157.8,157.78,9.75]
[1727468094579,3.1679,157.79,157.78,9.75]
[1727468095084,1.279,157.83,157.78,12.9181]
[1727468095280,1.279,157.83,157.8,9.75]
[1727468096888,3.1676,157.81,157.8,9.75]
[1727468097286,3.1669,157.84,157.8,9.75]
[1727468097484,3.1669,157.84,157.74,3.14743633]
[1727468097485,3.1669,157.84,157.82,9.75]
[1727468098378,3.1667,157.85,157.82,9.75]
[1727468098984,3.1667,157.85,157.82,12.9171]
[1727468099190,3.1667,157.85,157.82,9.75]
[1727468099376,9.75,157.86,157.8,9.75]
[1727468100389,3.1673,157.83,157.8,9.75]
[1727468100592,9.75,157.84,157.79,9.75]
[1727468100887,3.1677,157.81,157.79,9.75]
[1727468102076,3.1677,157.81,157.77,3.1682]
[1727468102077,3.1681,157.79,157.75,7.0374]
[1727468102275,9.75,157.82,157.77,9.75]
[1727468102480,3.9645,157.86,157.8,9.75]
[1727468102779,3.1672,157.83,157.8,9.75]
[1727468103490,3.1673,157.82,157.8,9.75]
[1727468103984,3.1672,157.83,157.8,12.9177]
[1727468104183,3.1672,157.83,157.8,9.75]
[1727468104392,3.1672,157.83,157.81,9.75]
[1727468105787,3.167,157.84,157.82,9.75]
[1727468106485,3.167,157.84,157.83,9.75]
[1727468107082,1.2702,157.86,157.83,9.75]
[1727468108191,3.1669,157.85,157.83,9.75]
[1727468108791,3.1669,157.84,157.83,9.75]
[1727468109195,3.167,157.84,157.82,9.75]
[1727468109492,1.2702,157.86,157.82,9.75]
[1727468109690,11.0202,157.86,157.82,9.75]
[1727468110799,3.1671,157.83,157.82,9.75]
[1727468111000,9.75,157.84,157.79,9.75]
[1727468111197,9.75,157.83,157.79,9.75]
[1727468111502,3.1676,157.81,157.79,9.75]
[1727468111892,3.1676,157.81,157.78,3.168]
[1727468112098,3.1678,157.8,157.78,12.918]
[1727468112695,3.1678,157.8,157.78,9.75]
[1727468114394,3.1678,157.8,157.77,3.1682]
[1727468114696,1.2702,157.86,157.77,9.75]
[1727468114697,3.1679,157.79,157.77,9.75]
[1727468116599,3.1678,157.8,157.78,9.75]
[1727468118795,3.1678,157.8,157.78,12.9181]
[1727468119406,3.1676,157.81,157.79,9.75]
[1727468121900,3.1674,157.82,157.79,12.9179]
[1727468122101,3.1674,157.82,157.8,9.75]
[1727468122306,1.2702,157.86,157.8,9.75]
[1727468122600,3.1672,157.83,157.82,9.75]
[1727468126405,3.1674,157.82,157.8,12.9176]
[1727468130406,10.58351005,157.85,157.8,9.75]
[1727468130711,21.60371005,157.86,157.82,9.75]
[1727468131713,3.1672,157.83,157.82,9.75]
[1727468133415,3.1669,157.84,157.82,12.9173]
[1727468133616,10.39257405,157.86,157.84,9.75]
[1727468133810,93.23086382,157.87,157.84,9.75]
[1727468134913,3.1668,157.85,157.84,9.75]
[1727468135115,93.23086382,157.87,157.82,3.1673]
[1727468135313,93.23086382,157.87,157.83,9.75]
[1727468135509,93.23086382,157.87,157.75,4.38980414]
[1727468135720,9.75,157.85,157.81,9.75]
[1727468136321,3.1673,157.82,157.81,9.75]
[1727468136516,93.23086382,157.87,157.81,9.75]
[1727468136722,3.1672,157.83,157.81,9.75]
[1727468144526,3.1673,157.82,157.81,9.75]
[1727468145222,9.75,157.82,157.75,4.38980414]
[1727468145422,9.75,157.82,157.77,9.75]
[1727468145627,9.75,157.82,157.78,9.75]
[1727468145628,3.1677,157.8,157.78,9.75]
[1727468145834,9.75,157.83,157.79,9.75]
[1727468146122,3.1673,157.83,157.82,9.75]
[1727468146621,11.69376853,157.85,157.82,9.75]
[1727468146813,3.1671,157.84,157.82,9.75]
[1727468147218,3.1669,157.85,157.82,12.9173]
[1727468147416,3.1669,157.85,157.83,9.75]
[1727468150627,4.1065,157.89,157.84,9.75]
[1727468151235,3.1667,157.86,157.84,9.75]
[1727468152630,3.1667,157.86,157.83,3.1671]
[1727468152829,3.1667,157.86,157.84,9.75]
[1727468160037,3.1663,157.88,157.85,12.9167]
[1727468160250,3.1663,157.88,157.87,9.75]
[1727468162028,3.1659,157.9,157.87,12.9163]
[1727468162331,3.1659,157.9,157.89,9.75]
[1727468166536,3.1656,157.91,157.89,9.75]
[1727468166742,9.96916474,157.92,157.9,9.75]
[1727468166928,2.6381,157.94,157.9,9.75]
[1727468167128,3.1651,157.93,157.92,9.75]
[1727468168343,3.1657,157.91,157.9,9.75]
[1727468170337,3.1659,157.9,157.89,9.75]
[1727468170539,9.75,157.93,157.87,9.75]
[1727468171548,9.75,157.93,157.86,3.1664]
[1727468171843,9.75,157.93,157.87,9.75]
[1727468172644,9.75,157.91,157.86,9.75]
[1727468172847,9.75,157.9,157.81,1.3251]
[1727468173046,9.75,157.88,157.76,1.2668]
[1727468173246,9.75,157.88,157.83,9.75]
[1727468173847,3.1669,157.85,157.83,12.9171]
[1727468174643,3.1669,157.85,157.84,9.75]
[1727468174840,3.1666,157.86,157.84,12.9169]
[1727468175142,3.1666,157.86,157.84,9.75]
[1727468176042,3.1667,157.85,157.84,9.75]
[1727468177052,3.1667,157.85,157.82,3.1673]
[1727468177345,3.1667,157.85,157.83,9.75]
[1727468177552,9.75,157.87,157.76,2.5369]
[1727468177752,9.75,157.87,157.81,9.75]
[1727468178251,9.75,157.86,157.76,2.5369]
[1727468178451,11.1002,157.86,157.8,85.24278646]
[1727468178849,3.1674,157.82,157.8,85.24278646]
[1727468179253,11.1002,157.86,157.8,85.24278646]
[1727468179254,3.1672,157.83,157.81,9.75]
[1727468181054,3.1673,157.82,157.81,9.75]
[1727468182043,3.1672,157.83,157.81,9.75]
[1727468183652,3.1669,157.85,157.82,9.75]
[1727468183857,3.1669,157.85,157.84,9.75]
[1727468190159,22.2986305,157.88,157.84,9.75]
[1727468190350,12.3058,157.88,157.84,9.75]
[1727468191861,3.1667,157.85,157.84,9.75]
[1727468197775,3.1669,157.84,157.83,9.75]
[1727468198163,9.75,157.86,157.8,75.49278646]
[1727468198469,9.75,157.84,157.79,9.75]
[1727468199571,9.75,157.82,157.76,1.2701]
[1727468199868,9.75,157.81,157.77,9.75]
[1727468200069,3.1681,157.79,157.77,9.75]
[1727468200269,1.3778,157.86,157.74,75.52182592]
[1727468200270,9.75,157.78,157.74,75.52182592]
[1727468200660,3.1686,157.76,157.74,75.52182592]
[1727468202284,3.1687,157.75,157.74,75.52182592]
[1727468202579,9.75,157.75,157.7,9.75]
[1727468203281,3.1692,157.73,157.7,9.75]
[1727468203477,9.75,157.75,157.7,9.75]
[1727468204872,3.1691,157.73,157.7,12.9197]
[1727468211391,3.169,157.74,157.72,9.75]
[1727468211688,9.75,157.77,157.72,9.75]
[1727468212193,3.1688,157.75,157.72,9.75]
[1727468212692,3.169,157.74,157.72,9.75]
[1727468216789,3.169,157.74,157.71,12.9195]
[1727468217185,3.169,157.74,157.71,9.75]
[1727468219796,3.1688,157.75,157.71,9.75]
[1727468219998,9.75,157.76,157.71,9.75]
[1727468220395,3.169,157.74,157.71,12.9195]
[1727468222498,9.75,157.78,157.73,9.75]
[1727468222700,2.7352,157.8,157.75,9.75]
[1727468222896,12.4852,157.8,157.75,9.75]
[1727468223285,3.1685,157.77,157.75,9.75]
[1727468223485,1.3778,157.8,157.76,9.75]
[1727468223689,66.62241434,157.81,157.77,9.75]
[1727468223898,3.168,157.79,157.77,9.75]
[1727468229297,3.168,157.79,157.77,12.9183]
[1727468229600,3.168,157.79,157.77,9.75]
[1727468232602,1.3379,157.84,157.78,12.918]
[1727468232796,1.3379,157.84,157.8,9.75]
[1727468233192,3.1675,157.81,157.8,9.75]
[1727468234101,1.3379,157.84,157.8,9.75]
[1727468234406,2.6352,157.85,157.83,9.75]
[1727468234407,1.3262,157.85,157.83,9.75]
[1727468235112,3.1669,157.84,157.83,9.75]
[1727468235607,3.1665,157.86,157.83,9.75]
[1727468235911,3.1665,157.86,157.85,9.75]
[1727468236305,3.1662,157.88,157.85,9.75]
[1727468236498,3.1662,157.88,157.87,9.75]
[1727468238412,3.1659,157.9,157.87,9.75]
[1727468238708,3.1659,157.9,157.88,9.75]
[1727468239905,3.1659,157.9,157.86,3.1664]
[1727468240104,3.166,157.89,157.79,1.3071]
[1727468240312,3.166,157.89,157.87,9.75]
[1727468240807,3.1659,157.9,157.88,9.75]
[1727468244714,3.1659,157.89,157.88,9.75]
[1727468247412,11.101,157.93,157.88,9.75]
[1727468247806,3.1659,157.89,157.88,9.75]
[1727468249416,3.1659,157.89,157.85,3.1666]
[1727468249602,9.75,157.9,157.79,1.3071]
[1727468249801,9.75,157.9,157.85,9.75]
[1727468250605,3.1665,157.87,157.85,9.75]
[1727468250804,9.75,157.9,157.83,3.1671]
[1727468251005,9.75,157.9,157.85,9.75]
[1727468251404,3.1666,157.86,157.85,9.75]
[1727468253109,9.75,157.88,157.79,1.3071]
[1727468253313,9.75,157.86,157.82,9.75]
[1727468253912,3.1668,157.85,157.83,9.75]
[1727468254506,3.1666,157.86,157.84,9.75]
[1727468255105,3.1666,157.86,157.85,9.75]
[1727468255703,1.2771,157.89,157.85,9.75]
[1727468255906,1.2771,157.89,157.87,9.75]
[1727468256317,3.1664,157.87,157.86,9.75]
[1727468257315,1.351,157.93,157.86,12.9165]
[1727468257608,1.351,157.93,157.81,3.21363823]
[1727468257609,1.351,157.93,157.89,9.75]
[1727468258509,1.351,157.93,157.79,1.3071]
[1727468258707,11.101,157.93,157.88,9.75]
[1727468258912,11.101,157.93,157.87,9.75]
[1727468259113,3.1661,157.89,157.87,9.75]
[1727468259615,3.1661,157.89,157.86,3.1664]
[1727468259616,3.1661,157.89,157.88,9.75]
[1727468260722,66.55803639,157.96,157.88,9.75]
[1727468260911,79.01803639,157.96,157.91,9.75]
[1727468261108,9.93741676,157.95,157.9,9.75]
[1727468261315,9.75,157.95,157.9,9.75]
[1727468261618,3.1657,157.91,157.9,9.75]
[1727468262612,3.1659,157.9,157.89,9.75]
[1727468270219,79.01803639,157.96,157.89,12.9159]
[1727468270424,79.01803639,157.96,157.91,9.75]
[1727468271324,3.1653,157.92,157.91,9.75]
[1727468273731,3.165,157.94,157.91,12.9154]
[1727468273927,3.165,157.94,157.93,9.75]
[1727468274443,1.3095,158.0,157.93,9.75]
[1727468274729,9.75,157.99,157.93,9.75]
[1727468274930,3.1649,157.94,157.93,9.75]
[1727468275329,1.3095,158.0,157.93,9.75]
[1727468275531,3.1649,157.94,157.93,9.75]
[1727468276332,3.1653,157.93,157.91,9.75]
[1727468276627,9.75,157.92,157.88,9.75]
[1727468276823,3.1659,157.89,157.88,9.75]
[1727468277029,9.75,157.9,157.8,1.378]
[1727468277228,9.75,157.9,157.85,9.75]
[1727468278427,9.75,157.86,157.68,74.76]
[1727468278633,9.75,157.86,157.81,9.75]
[1727468279436,12.3363,157.89,157.84,9.75]
[1727468280123,3.1667,157.86,157.84,9.75]
[1727468283933,3.1667,157.86,157.82,12.9172]
[1727468284130,9.75,157.85,157.8,9.75]
[1727468286036,3.1671,157.83,157.8,12.9177]
[1727468287342,9.75,157.87,157.81,12.9175]
[1727468287931,3.1669,157.85,157.82,3.1673]
[1727468288230,1.3266,157.88,157.83,9.75]
[1727468288430,11.0766,157.88,157.83,9.75]
[1727468288734,3.1668,157.85,157.83,9.75]
[1727468289740,3.1669,157.84,157.83,9.75]
[1727468289942,1.3266,157.88,157.75,2.7016]
[1727468289943,9.75,157.85,157.75,2.7016]
[1727468290129,9.75,157.84,157.8,9.75]
[1727468290733,3.1673,157.83,157.8,12.9177]
[1727468290939,9.75,157.84,157.79,9.75]
[1727468291141,9.75,157.82,157.77,9.75]
[1727468291541,3.1676,157.81,157.78,3.168]
[1727468292444,3.1676,157.81,157.78,12.918]
[1727468296953,3.1678,157.8,157.78,9.75]
[1727468297133,9.75,157.8,157.73,1.3756]
[1727468297446,9.75,157.77,157.7,1.3332]
[1727468297646,3.1686,157.76,157.73,9.75]
[1727468298746,3.1687,157.75,157.72,12.9192]
[1727468300353,3.1687,157.75,157.72,9.75]
[1727468300542,3.169,157.74,157.7,11.0832]
[1727468300947,3.169,157.74,157.7,14.2527]
[1727468302050,3.169,157.74,157.71,12.9195]
[1727468303256,9.75,157.79,157.73,9.75]
[1727468303457,9.75,157.8,157.75,9.75]
[1727468304868,3.1685,157.76,157.75,9.75]
[1727468305469,3.1685,157.76,157.74,9.75]
[1727468305661,3.1685,157.76,157.73,3.169]
[1727468307165,2.5614,157.82,157.74,9.75]
[1727468307469,9.75,157.79,157.74,9.75]
[1727468307868,3.1684,157.77,157.74,12.9188]